{"text_format":"1","workbook":"xlsx","n_sheets":4,"sheets":["Demande d'allocations","Rapprochement des allocations","Validations","Site Details"],"not_rendered":{"charts":0,"images":1,"macros":1,"external_links":1,"defined_names":15,"comments":0,"pivot_tables":0},"unopened":[],"bounds":{"document_bytes":16777216,"sheet_cells":100000,"rows_first":2000,"rows_last":500,"rows_between":2000,"halvings":0,"cell_chars":16384,"cell_head_chars":4096},"cells_cut":0,"cells_raw":0,"read":"whole","date_system":"1900"}

{"sheet":"Demande d'allocations","index":0,"n_rows":72,"n_cols":18,"rows_kept":72,"cut":false,"hidden":false,"merged":[[12,1,12,4],[11,1,11,7],[15,1,15,7],[25,3,25,7],[40,14,40,17],[61,1,61,7],[67,1,67,5],[25,1,25,2],[14,1,14,6],[13,1,13,10],[16,1,16,7],[17,1,17,2],[21,1,21,7],[22,1,22,7]]}
[]
[null,"DEMANDE D’ALLOCATIONS PONCTUELLES À DES FINS PARTICULIÈRES POUR 2024"]
[null,"À PROPOS DE L’AGENCE"]
[null,"Nom légal "]
[null,"Personne contacte"]
[null,"Numéro de téléphone "]
[null,"Courriel"]
[]
[null,"Vous trouverez des informations détaillées dans le document « Allocations ponctuelles à des fins particulières pour 2024 : Processus de demande pour les fournisseurs de services de garde d’enfants agréés ». Ce document se trouve sur le site ",null,null,null,null,"DNSSAB | Financement à fins particulières"]
[]
[null,"NOTE:"]
[null,"• Le formulaire de demande doit être rempli de façon détaillée et soumis dans le format électronique prescrit (document Excel). Les demandes envoyées par télécopie, écrites à la main ou sur papier ne seront pas prises en considération.     "]
[null,"• Les dépenses doivent avoir été effectuées pendant l’année civile en cours pour être admissibles à un remboursement."]
[null,"• Le financement sera accordé selon les priorités suivantes : 1) les demandes qui démontrent les besoins les plus essentiels et les plus urgents (par exemple, un fournisseur qui peut démontrer avec des preuves écrites qu’il ne se conforme pas aux exigences de la Loi pour la délivrance de permis ou qu’il risque de ne pas s’y conformer); et 2) les priorités indiquées par le fournisseur de services.  "]
[null,"• Le financement est accordé selon le budget alloué à ce programme. La disponibilité du financement ponctuel dépendra de l’octroi de financement par le ministère ainsi que du budget des Services à l’enfance du CASSDN."]
[null,"• Les documents à l’appui (devis/estimations, reçus, factures, recommandations d’organismes externes, etc.) doivent également être joints à la demande pour qu’elle soit prise en considération."]
[null,"•  DEVIS/ESTIMATIONS:  Le fournisseur de services doit solliciter et soumettre le nombre minimum de devis/estimations pour le projet selon le tableau suivant.    Dans certaines situations, il pourrait être impossible d’obtenir le nombre requis de devis/estimations. Ce serait le cas, par exemple, pour l’embauche d’un entrepreneur ayant des connaissances, des compétences ou une expertise particulières. Dans un tel cas, le fournisseur de services doit soumettre au CASSDN une documentation témoignant de ses recherches infructueuses. Le fournisseur de services démontrera ainsi qu’il a déployé tous les efforts pour essayer de répondre à l’exigence."]
[null,"Exigences de devis/estimations pour l'achat des biens et de services"]
[null,"24 999 $ ou moins","1 devis écrit détaillant l’achat et/ou l’étendue des travaux à réaliser  "]
[null,"25 000 $ à 49 999 $","2 devis écrits détaillant l’achat et/ou l’étendue des travaux à réaliser"]
[null,"50 000 $ ou plus","3 devis écrits détaillant l’achat et/ou l’étendue des travaux à réaliser"]
[null,"•   Lorsque vous complétez la demande pour le financement du matériel de jeux et l'équipement, veuillez vous assurer de compléter la demande pour tout le matériel de jeux et l'équipement en utilisant une rangée/ligne pour chaque site."]
[null,"•   Pour les demandes relatives aux financement à la transformation, si la demande inclus une augmentation d'espaces licenciés en service de garde, le fournisseur de services est invité à compléter la ''Demande de subvention de démarrage du SPAGJE'' disponible au site web du CASSDN."]
[null,"• Les demandes et les documents à l’appui doivent être soumis en format électronique (Excel) à l’adresse courriel suivante au plus tard le 10 mai, 2024.",null,null,null,"csfundingrequest@dnssab.ca"]
[]
[null,null,null,"CAPACITÉ AGRÉÉE ACTUELLE",null,null,null,null,"NOUVELLE CAPACITÉ AGRÉÉE"]
[null,"#","NOM DU SITE OU DE L’EMPLACEMENT ","POUPONS","BAMBINS ","ÂGE PRÉSCOLAIRE","MATERNELLE/JARDIN D’ENFANTS ","ÂGE SCOLAIRE","Fournissez cette information si vous demandez du financement pour les frais liés à la transformation ","FOURNISSEZ DES DÉTAILS"]
[null,"Site 1",null,{"$f":"IFERROR(INDEX(Provider[POUPONS],MATCH(Capacities[[#This Row],[NOM DU SITE OU DE L’EMPLACEMENT ]],Provider[Nom],0)),\"\")","v":""},{"$f":"IFERROR(INDEX(Provider[BAMBINS],MATCH(Capacities[[#This Row],[NOM DU SITE OU DE L’EMPLACEMENT ]],Provider[Nom],0)),\"\")","v":""},{"$f":"IFERROR(INDEX(Provider[PRÉSCOLAIRES],MATCH(Capacities[[#This Row],[NOM DU SITE OU DE L’EMPLACEMENT ]],Provider[Nom],0)),\"\")","v":""},{"$f":"IFERROR(INDEX(Provider[MATERNELLE/JARDIN],MATCH(Capacities[[#This Row],[NOM DU SITE OU DE L’EMPLACEMENT ]],Provider[Nom],0)),\"\")","v":""},{"$f":"IFERROR(INDEX(Provider[ÂGE SCOLAIRE],MATCH(Capacities[[#This Row],[NOM DU SITE OU DE L’EMPLACEMENT ]],Provider[Nom],0)),\"\")","v":""}]
[null,"Site 2",null,{"$f":"IFERROR(INDEX(Provider[POUPONS],MATCH(Capacities[[#This Row],[NOM DU SITE OU DE L’EMPLACEMENT ]],Provider[Nom],0)),\"\")","v":""},{"$f":"IFERROR(INDEX(Provider[BAMBINS],MATCH(Capacities[[#This Row],[NOM DU SITE OU DE L’EMPLACEMENT ]],Provider[Nom],0)),\"\")","v":""},{"$f":"IFERROR(INDEX(Provider[PRÉSCOLAIRES],MATCH(Capacities[[#This Row],[NOM DU SITE OU DE L’EMPLACEMENT ]],Provider[Nom],0)),\"\")","v":""},{"$f":"IFERROR(INDEX(Provider[MATERNELLE/JARDIN],MATCH(Capacities[[#This Row],[NOM DU SITE OU DE L’EMPLACEMENT ]],Provider[Nom],0)),\"\")","v":""},{"$f":"IFERROR(INDEX(Provider[ÂGE SCOLAIRE],MATCH(Capacities[[#This Row],[NOM DU SITE OU DE L’EMPLACEMENT ]],Provider[Nom],0)),\"\")","v":""}]
[null,"Site 3",null,{"$f":"IFERROR(INDEX(Provider[POUPONS],MATCH(Capacities[[#This Row],[NOM DU SITE OU DE L’EMPLACEMENT ]],Provider[Nom],0)),\"\")","v":""},{"$f":"IFERROR(INDEX(Provider[BAMBINS],MATCH(Capacities[[#This Row],[NOM DU SITE OU DE L’EMPLACEMENT ]],Provider[Nom],0)),\"\")","v":""},{"$f":"IFERROR(INDEX(Provider[PRÉSCOLAIRES],MATCH(Capacities[[#This Row],[NOM DU SITE OU DE L’EMPLACEMENT ]],Provider[Nom],0)),\"\")","v":""},{"$f":"IFERROR(INDEX(Provider[MATERNELLE/JARDIN],MATCH(Capacities[[#This Row],[NOM DU SITE OU DE L’EMPLACEMENT ]],Provider[Nom],0)),\"\")","v":""},{"$f":"IFERROR(INDEX(Provider[ÂGE SCOLAIRE],MATCH(Capacities[[#This Row],[NOM DU SITE OU DE L’EMPLACEMENT ]],Provider[Nom],0)),\"\")","v":""}]
[null,"Site 4",null,{"$f":"IFERROR(INDEX(Provider[POUPONS],MATCH(Capacities[[#This Row],[NOM DU SITE OU DE L’EMPLACEMENT ]],Provider[Nom],0)),\"\")","v":""},{"$f":"IFERROR(INDEX(Provider[BAMBINS],MATCH(Capacities[[#This Row],[NOM DU SITE OU DE L’EMPLACEMENT ]],Provider[Nom],0)),\"\")","v":""},{"$f":"IFERROR(INDEX(Provider[PRÉSCOLAIRES],MATCH(Capacities[[#This Row],[NOM DU SITE OU DE L’EMPLACEMENT ]],Provider[Nom],0)),\"\")","v":""},{"$f":"IFERROR(INDEX(Provider[MATERNELLE/JARDIN],MATCH(Capacities[[#This Row],[NOM DU SITE OU DE L’EMPLACEMENT ]],Provider[Nom],0)),\"\")","v":""},{"$f":"IFERROR(INDEX(Provider[ÂGE SCOLAIRE],MATCH(Capacities[[#This Row],[NOM DU SITE OU DE L’EMPLACEMENT ]],Provider[Nom],0)),\"\")","v":""}]
[null,"Site 5",null,{"$f":"IFERROR(INDEX(Provider[POUPONS],MATCH(Capacities[[#This Row],[NOM DU SITE OU DE L’EMPLACEMENT ]],Provider[Nom],0)),\"\")","v":""},{"$f":"IFERROR(INDEX(Provider[BAMBINS],MATCH(Capacities[[#This Row],[NOM DU SITE OU DE L’EMPLACEMENT ]],Provider[Nom],0)),\"\")","v":""},{"$f":"IFERROR(INDEX(Provider[PRÉSCOLAIRES],MATCH(Capacities[[#This Row],[NOM DU SITE OU DE L’EMPLACEMENT ]],Provider[Nom],0)),\"\")","v":""},{"$f":"IFERROR(INDEX(Provider[MATERNELLE/JARDIN],MATCH(Capacities[[#This Row],[NOM DU SITE OU DE L’EMPLACEMENT ]],Provider[Nom],0)),\"\")","v":""},{"$f":"IFERROR(INDEX(Provider[ÂGE SCOLAIRE],MATCH(Capacities[[#This Row],[NOM DU SITE OU DE L’EMPLACEMENT ]],Provider[Nom],0)),\"\")","v":""}]
[null,"Site 6",null,{"$f":"IFERROR(INDEX(Provider[POUPONS],MATCH(Capacities[[#This Row],[NOM DU SITE OU DE L’EMPLACEMENT ]],Provider[Nom],0)),\"\")","v":""},{"$f":"IFERROR(INDEX(Provider[BAMBINS],MATCH(Capacities[[#This Row],[NOM DU SITE OU DE L’EMPLACEMENT ]],Provider[Nom],0)),\"\")","v":""},{"$f":"IFERROR(INDEX(Provider[PRÉSCOLAIRES],MATCH(Capacities[[#This Row],[NOM DU SITE OU DE L’EMPLACEMENT ]],Provider[Nom],0)),\"\")","v":""},{"$f":"IFERROR(INDEX(Provider[MATERNELLE/JARDIN],MATCH(Capacities[[#This Row],[NOM DU SITE OU DE L’EMPLACEMENT ]],Provider[Nom],0)),\"\")","v":""},{"$f":"IFERROR(INDEX(Provider[ÂGE SCOLAIRE],MATCH(Capacities[[#This Row],[NOM DU SITE OU DE L’EMPLACEMENT ]],Provider[Nom],0)),\"\")","v":""}]
[null,"Site 7",null,{"$f":"IFERROR(INDEX(Provider[POUPONS],MATCH(Capacities[[#This Row],[NOM DU SITE OU DE L’EMPLACEMENT ]],Provider[Nom],0)),\"\")","v":""},{"$f":"IFERROR(INDEX(Provider[BAMBINS],MATCH(Capacities[[#This Row],[NOM DU SITE OU DE L’EMPLACEMENT ]],Provider[Nom],0)),\"\")","v":""},{"$f":"IFERROR(INDEX(Provider[PRÉSCOLAIRES],MATCH(Capacities[[#This Row],[NOM DU SITE OU DE L’EMPLACEMENT ]],Provider[Nom],0)),\"\")","v":""},{"$f":"IFERROR(INDEX(Provider[MATERNELLE/JARDIN],MATCH(Capacities[[#This Row],[NOM DU SITE OU DE L’EMPLACEMENT ]],Provider[Nom],0)),\"\")","v":""},{"$f":"IFERROR(INDEX(Provider[ÂGE SCOLAIRE],MATCH(Capacities[[#This Row],[NOM DU SITE OU DE L’EMPLACEMENT ]],Provider[Nom],0)),\"\")","v":""}]
[null,"Site 8",null,{"$f":"IFERROR(INDEX(Provider[POUPONS],MATCH(Capacities[[#This Row],[NOM DU SITE OU DE L’EMPLACEMENT ]],Provider[Nom],0)),\"\")","v":""},{"$f":"IFERROR(INDEX(Provider[BAMBINS],MATCH(Capacities[[#This Row],[NOM DU SITE OU DE L’EMPLACEMENT ]],Provider[Nom],0)),\"\")","v":""},{"$f":"IFERROR(INDEX(Provider[PRÉSCOLAIRES],MATCH(Capacities[[#This Row],[NOM DU SITE OU DE L’EMPLACEMENT ]],Provider[Nom],0)),\"\")","v":""},{"$f":"IFERROR(INDEX(Provider[MATERNELLE/JARDIN],MATCH(Capacities[[#This Row],[NOM DU SITE OU DE L’EMPLACEMENT ]],Provider[Nom],0)),\"\")","v":""},{"$f":"IFERROR(INDEX(Provider[ÂGE SCOLAIRE],MATCH(Capacities[[#This Row],[NOM DU SITE OU DE L’EMPLACEMENT ]],Provider[Nom],0)),\"\")","v":""}]
[null,"Site 9",null,{"$f":"IFERROR(INDEX(Provider[POUPONS],MATCH(Capacities[[#This Row],[NOM DU SITE OU DE L’EMPLACEMENT ]],Provider[Nom],0)),\"\")","v":""},{"$f":"IFERROR(INDEX(Provider[BAMBINS],MATCH(Capacities[[#This Row],[NOM DU SITE OU DE L’EMPLACEMENT ]],Provider[Nom],0)),\"\")","v":""},{"$f":"IFERROR(INDEX(Provider[PRÉSCOLAIRES],MATCH(Capacities[[#This Row],[NOM DU SITE OU DE L’EMPLACEMENT ]],Provider[Nom],0)),\"\")","v":""},{"$f":"IFERROR(INDEX(Provider[MATERNELLE/JARDIN],MATCH(Capacities[[#This Row],[NOM DU SITE OU DE L’EMPLACEMENT ]],Provider[Nom],0)),\"\")","v":""},{"$f":"IFERROR(INDEX(Provider[ÂGE SCOLAIRE],MATCH(Capacities[[#This Row],[NOM DU SITE OU DE L’EMPLACEMENT ]],Provider[Nom],0)),\"\")","v":""}]
[null,"Site 10",null,{"$f":"IFERROR(INDEX(Provider[POUPONS],MATCH(Capacities[[#This Row],[NOM DU SITE OU DE L’EMPLACEMENT ]],Provider[Nom],0)),\"\")","v":""},{"$f":"IFERROR(INDEX(Provider[BAMBINS],MATCH(Capacities[[#This Row],[NOM DU SITE OU DE L’EMPLACEMENT ]],Provider[Nom],0)),\"\")","v":""},{"$f":"IFERROR(INDEX(Provider[PRÉSCOLAIRES],MATCH(Capacities[[#This Row],[NOM DU SITE OU DE L’EMPLACEMENT ]],Provider[Nom],0)),\"\")","v":""},{"$f":"IFERROR(INDEX(Provider[MATERNELLE/JARDIN],MATCH(Capacities[[#This Row],[NOM DU SITE OU DE L’EMPLACEMENT ]],Provider[Nom],0)),\"\")","v":""},{"$f":"IFERROR(INDEX(Provider[ÂGE SCOLAIRE],MATCH(Capacities[[#This Row],[NOM DU SITE OU DE L’EMPLACEMENT ]],Provider[Nom],0)),\"\")","v":""}]
[null,"Site 11",null,{"$f":"IFERROR(INDEX(Provider[POUPONS],MATCH(Capacities[[#This Row],[NOM DU SITE OU DE L’EMPLACEMENT ]],Provider[Nom],0)),\"\")","v":""},{"$f":"IFERROR(INDEX(Provider[BAMBINS],MATCH(Capacities[[#This Row],[NOM DU SITE OU DE L’EMPLACEMENT ]],Provider[Nom],0)),\"\")","v":""},{"$f":"IFERROR(INDEX(Provider[PRÉSCOLAIRES],MATCH(Capacities[[#This Row],[NOM DU SITE OU DE L’EMPLACEMENT ]],Provider[Nom],0)),\"\")","v":""},{"$f":"IFERROR(INDEX(Provider[MATERNELLE/JARDIN],MATCH(Capacities[[#This Row],[NOM DU SITE OU DE L’EMPLACEMENT ]],Provider[Nom],0)),\"\")","v":""},{"$f":"IFERROR(INDEX(Provider[ÂGE SCOLAIRE],MATCH(Capacities[[#This Row],[NOM DU SITE OU DE L’EMPLACEMENT ]],Provider[Nom],0)),\"\")","v":""}]
[]
[null,"INFORMATION DÉTAILLÉE"]
[null,null,null,"Veuillez sélectionner toutes les options qui s’appliquent (poupons, bambins, etc.) ",null,"Veuillez fournir une brève description du projet, de l'achat ou de la réparation.",null,null,"Please Assign a Priority for Each Request (i.e.1,2, 3, …etc.) by ranking in order of importance.",null,null,null,null,null,"À l’USAGE DU CASSND SEULEMENT"]
[null,"NUMÉRO DE LA DEMANDE ","NOM DU SITE OU DE L’EMPLACEMENT","GROUPES D’ÂGE","PROJET, ACHAT ou RÉPARATION","DESCRIPTION","TYPE DE FINANCEMENT","COÛT","Priorité de l’agence","RAISON DE LA DEMANDE","FOURNISSEZ DES DÉTAILS","ÉTAT D’AVANCEMENT DU PROJET ","Ajouter","Supprimer","DEMANDE APPROUVÉE","ALLOCATION APPROUVÉE","DOCUMENTS À L'APPUI REÇUS ","COMMENTAIRES"]
[null,{"$f":"ROW()-42","v":1},null,null,null,null,null,{"$f":"0","v":0},null,null,null,null,{"$f":"\"+\"","v":"+"},{"$f":"\"-\"","v":"-"}]
[null,{"$f":"ROW()-42","v":2},null,null,null,null,null,{"$f":"0","v":0},null,null,null,null,{"$f":"\"+\"","v":"+"},{"$f":"\"-\"","v":"-"}]
[null,3,null,null,null,null,null,{"$f":"0","v":0},null,null,null,null,{"$f":"\"+\"","v":"+"},{"$f":"\"-\"","v":"-"}]
[null,4,null,null,null,null,null,{"$f":"0","v":0},null,null,null,null,{"$f":"\"+\"","v":"+"},{"$f":"\"-\"","v":"-"}]
[null,5,null,null,null,null,null,{"$f":"0","v":0},null,null,null,null,"+","-"]
[null,6,null,null,null,null,null,{"$f":"0","v":0},null,null,null,null,"+","-"]
[null,{"$f":"ROW()-42","v":7},null,null,null,null,null,{"$f":"0","v":0},null,null,null,null,{"$f":"\"+\"","v":"+"},{"$f":"\"-\"","v":"-"}]
[null,8,null,null,null,null,null,{"$f":"0","v":0},null,null,null,null,"+","-"]
[null,9,null,null,null,null,null,{"$f":"0","v":0},null,null,null,null,"+","-"]
[null,10,null,null,null,null,null,{"$f":"0","v":0},null,null,null,null,"+","-"]
[null,11,null,null,null,null,null,{"$f":"0","v":0},null,null,null,null,{"$f":"\"+\"","v":"+"},{"$f":"\"-\"","v":"-"}]
[null,12,null,null,null,null,null,{"$f":"0","v":0},null,null,null,null,{"$f":"\"+\"","v":"+"},{"$f":"\"-\"","v":"-"}]
[null,13,null,null,null,null,null,{"$f":"0","v":0},null,null,null,null,"+","-"]
[null,14,null,null,null,null,null,{"$f":"0","v":0},null,null,null,null,{"$f":"\"+\"","v":"+"},{"$f":"\"-\"","v":"-"}]
[null,null,null,null,null,null,"Financement pour les réparations et l’entretien ",{"$f":"SUMIFS([1]!FundingDetails[COÛT],[1]!FundingDetails[TYPE DE FINANCEMENT],G57)","v":0},null,null,null,null,null,null,"Repairs & Maintenance Funding",{"$f":"SUMIFS(FundingDetails[ALLOCATION APPROUVÉE],FundingDetails[TYPE DE FINANCEMENT],O57)","v":0}]
[null,null,null,null,null,null,"Financement du matériel de jeux et de l’équipement ",{"$f":"SUMIFS([1]!FundingDetails[COÛT],[1]!FundingDetails[TYPE DE FINANCEMENT],G58)","v":0},null,null,null,null,null,null,"Play-Based Materials & Equipment Funding",{"$f":"SUMIFS(FundingDetails[ALLOCATION APPROUVÉE],FundingDetails[TYPE DE FINANCEMENT],O58)","v":0}]
[null,null,null,null,null,null,"Financement des frais liés à la transformation ",{"$f":"SUMIFS([1]!FundingDetails[COÛT],[1]!FundingDetails[TYPE DE FINANCEMENT],G59)","v":0},null,null,null,null,null,null,"Transformation Funding",{"$f":"SUMIFS(FundingDetails[ALLOCATION APPROUVÉE],FundingDetails[TYPE DE FINANCEMENT],O59)","v":0}]
[null,null,null,null,null,null,"FINANCEMENT TOTAL DEMANDÉ POUR LES ALLOCATIONS PONCTUELLES À DES FINS PARTICULIÈRES ",{"$f":"SUM(H57:H59)","v":0},null,null,null,null,null,null,"TOTAL FUNDING 1x SPECIAL PURPOSE FUNDING ALLOCATION",{"$f":"SUM(P57:P59)","v":0}]
[null,"NOTE IMPORTANTE:"]
[null,"•   Une demande ne garantit pas une allocation de financement pour les projets proposés, en cours ou terminés."]
[null,"•   Le financement sera accordé selon les priorités, comme indiqué ci-dessus, et selon les politiques et les lignes directrices applicables."]
[null,"•   La disponibilité du financement ponctuel dépendra de l’octroi de financement par le ministère ainsi que du budget des Services à l’enfance du CASSDN."]
[null,"•   Le fournisseur de services conclut des contrats ou des ententes financières à ses propres risques. Le CASSDN n’accepte aucune responsabilité pour les investissements financiers que le fournisseur de services pourrait faire avant de conclure un accord contractuel avec le CASSDN."]
[null,"•   À moins que le CASSDN accorde une prolongation, toutes les allocations de financement doivent être dépensées avant le 31 décembre annuellement."]
[]
[null,"ATTESTATION: J’atteste par la présente que je possède l’autorité nécessaire pour lier l’agence et que je suis d’accord avec toutes les conditions associées au programme d’allocations ponctuelles à des fins particulières."]
[]
[null,"Nom:"]
[null,"Titre:"]
[null,"Date:"]

{"sheet":"Rapprochement des allocations","index":1,"n_rows":66,"n_cols":7,"rows_kept":66,"cut":false,"hidden":false,"merged":[[1,2,1,4],[60,1,60,4],[51,1,58,4],[18,5,18,6],[4,5,4,6],[32,5,32,6]]}
[null,"RAPPROCHEMENT DES ALLOCATIONS PONCTUELLES À DES FINS PARTICULIÈRES 2024"]
[null,"OBJECTIF:","Confirmer les dépenses réelles associées aux allocations ponctuelles à des fins particulières pour l’année. Indiquer les rajustements nécessaires et les fonds à récupérer, au besoin."]
[null," DATE:  ","Le 31 décembre annuellement"]
[]
[null,"FINANCEMENT TOTAL DES FRAIS LIÉS À LA TRANSFORMATION REÇU POUR L’ANNÉE",null,null,{"$f":"SUMIFS(FundingDetails[ALLOCATION APPROUVÉE],FundingDetails[TYPE DE FINANCEMENT],\"Transformation Funding\")","v":0},"À l’USAGE DU CASSDN SEULEMENT"]
[null,"SITE ","DÉPENSES APPROUVÉES","ALLOCATION APPROUVÉE","MONTANT RÉEL PAYÉ","DOCUMENTS À L'APPUI REÇUS ","NOTES"]
[null,{"$f":"IFERROR(INDEX(FundingDetails[NOM DU SITE OU DE L’EMPLACEMENT],_xlfn.AGGREGATE(15,6,IF((FundingDetails[DEMANDE APPROUVÉE]=\"✓\")*(FundingDetails[TYPE DE FINANCEMENT]=\"Frais liés à la transformation\"),ROW(FundingDetails[DESCRIPTION])-ROW(FundingDetails[#Headers])),ROW(1:1)),1),\"\")","v":""},{"$f":"IFERROR(INDEX(FundingDetails[DESCRIPTION],_xlfn.AGGREGATE(15,6,IF((FundingDetails[DEMANDE APPROUVÉE]=\"✓\")*(FundingDetails[TYPE DE FINANCEMENT]=\"Frais liés à la transformation\"),ROW(FundingDetails[DESCRIPTION])-ROW(FundingDetails[#Headers])),ROW(1:1)),1),\"\")","v":""},{"$f":"IFERROR(INDEX(FundingDetails[ALLOCATION APPROUVÉE],_xlfn.AGGREGATE(15,6,IF((FundingDetails[DEMANDE APPROUVÉE]=\"✓\")*(FundingDetails[TYPE DE FINANCEMENT]=\"Frais liés à la transformation\"),ROW(FundingDetails[ALLOCATION APPROUVÉE])-ROW(FundingDetails[#Headers])),ROW(1:1)),1),\"\")","v":""},0]
[null,{"$f":"IFERROR(INDEX(FundingDetails[NOM DU SITE OU DE L’EMPLACEMENT],_xlfn.AGGREGATE(15,6,IF((FundingDetails[DEMANDE APPROUVÉE]=\"✓\")*(FundingDetails[TYPE DE FINANCEMENT]=\"Frais liés à la transformation\"),ROW(FundingDetails[DESCRIPTION])-ROW(FundingDetails[#Headers])),ROW(2:2)),1),\"\")","v":""},{"$f":"IFERROR(INDEX(FundingDetails[DESCRIPTION],_xlfn.AGGREGATE(15,6,IF((FundingDetails[DEMANDE APPROUVÉE]=\"✓\")*(FundingDetails[TYPE DE FINANCEMENT]=\"Frais liés à la transformation\"),ROW(FundingDetails[DESCRIPTION])-ROW(FundingDetails[#Headers])),ROW(2:2)),1),\"\")","v":""},{"$f":"IFERROR(INDEX(FundingDetails[ALLOCATION APPROUVÉE],_xlfn.AGGREGATE(15,6,IF((FundingDetails[DEMANDE APPROUVÉE]=\"✓\")*(FundingDetails[TYPE DE FINANCEMENT]=\"Frais liés à la transformation\"),ROW(FundingDetails[ALLOCATION APPROUVÉE])-ROW(FundingDetails[#Headers])),ROW(2:2)),1),\"\")","v":""},0]
[null,{"$f":"IFERROR(INDEX(FundingDetails[NOM DU SITE OU DE L’EMPLACEMENT],_xlfn.AGGREGATE(15,6,IF((FundingDetails[DEMANDE APPROUVÉE]=\"✓\")*(FundingDetails[TYPE DE FINANCEMENT]=\"Frais liés à la transformation\"),ROW(FundingDetails[DESCRIPTION])-ROW(FundingDetails[#Headers])),ROW(3:3)),1),\"\")","v":""},{"$f":"IFERROR(INDEX(FundingDetails[DESCRIPTION],_xlfn.AGGREGATE(15,6,IF((FundingDetails[DEMANDE APPROUVÉE]=\"✓\")*(FundingDetails[TYPE DE FINANCEMENT]=\"Frais liés à la transformation\"),ROW(FundingDetails[DESCRIPTION])-ROW(FundingDetails[#Headers])),ROW(3:3)),1),\"\")","v":""},{"$f":"IFERROR(INDEX(FundingDetails[ALLOCATION APPROUVÉE],_xlfn.AGGREGATE(15,6,IF((FundingDetails[DEMANDE APPROUVÉE]=\"✓\")*(FundingDetails[TYPE DE FINANCEMENT]=\"Frais liés à la transformation\"),ROW(FundingDetails[ALLOCATION APPROUVÉE])-ROW(FundingDetails[#Headers])),ROW(3:3)),1),\"\")","v":""},0]
[null,{"$f":"IFERROR(INDEX(FundingDetails[NOM DU SITE OU DE L’EMPLACEMENT],_xlfn.AGGREGATE(15,6,IF((FundingDetails[DEMANDE APPROUVÉE]=\"✓\")*(FundingDetails[TYPE DE FINANCEMENT]=\"Frais liés à la transformation\"),ROW(FundingDetails[DESCRIPTION])-ROW(FundingDetails[#Headers])),ROW(4:4)),1),\"\")","v":""},{"$f":"IFERROR(INDEX(FundingDetails[DESCRIPTION],_xlfn.AGGREGATE(15,6,IF((FundingDetails[DEMANDE APPROUVÉE]=\"✓\")*(FundingDetails[TYPE DE FINANCEMENT]=\"Frais liés à la transformation\"),ROW(FundingDetails[DESCRIPTION])-ROW(FundingDetails[#Headers])),ROW(4:4)),1),\"\")","v":""},{"$f":"IFERROR(INDEX(FundingDetails[ALLOCATION APPROUVÉE],_xlfn.AGGREGATE(15,6,IF((FundingDetails[DEMANDE APPROUVÉE]=\"✓\")*(FundingDetails[TYPE DE FINANCEMENT]=\"Frais liés à la transformation\"),ROW(FundingDetails[ALLOCATION APPROUVÉE])-ROW(FundingDetails[#Headers])),ROW(4:4)),1),\"\")","v":""},0]
[null,{"$f":"IFERROR(INDEX(FundingDetails[NOM DU SITE OU DE L’EMPLACEMENT],_xlfn.AGGREGATE(15,6,IF((FundingDetails[DEMANDE APPROUVÉE]=\"✓\")*(FundingDetails[TYPE DE FINANCEMENT]=\"Frais liés à la transformation\"),ROW(FundingDetails[DESCRIPTION])-ROW(FundingDetails[#Headers])),ROW(5:5)),1),\"\")","v":""},{"$f":"IFERROR(INDEX(FundingDetails[DESCRIPTION],_xlfn.AGGREGATE(15,6,IF((FundingDetails[DEMANDE APPROUVÉE]=\"✓\")*(FundingDetails[TYPE DE FINANCEMENT]=\"Frais liés à la transformation\"),ROW(FundingDetails[DESCRIPTION])-ROW(FundingDetails[#Headers])),ROW(5:5)),1),\"\")","v":""},{"$f":"IFERROR(INDEX(FundingDetails[ALLOCATION APPROUVÉE],_xlfn.AGGREGATE(15,6,IF((FundingDetails[DEMANDE APPROUVÉE]=\"✓\")*(FundingDetails[TYPE DE FINANCEMENT]=\"Frais liés à la transformation\"),ROW(FundingDetails[ALLOCATION APPROUVÉE])-ROW(FundingDetails[#Headers])),ROW(5:5)),1),\"\")","v":""},0]
[null,{"$f":"IFERROR(INDEX(FundingDetails[NOM DU SITE OU DE L’EMPLACEMENT],_xlfn.AGGREGATE(15,6,IF((FundingDetails[DEMANDE APPROUVÉE]=\"✓\")*(FundingDetails[TYPE DE FINANCEMENT]=\"Frais liés à la transformation\"),ROW(FundingDetails[DESCRIPTION])-ROW(FundingDetails[#Headers])),ROW(6:6)),1),\"\")","v":""},{"$f":"IFERROR(INDEX(FundingDetails[DESCRIPTION],_xlfn.AGGREGATE(15,6,IF((FundingDetails[DEMANDE APPROUVÉE]=\"✓\")*(FundingDetails[TYPE DE FINANCEMENT]=\"Frais liés à la transformation\"),ROW(FundingDetails[DESCRIPTION])-ROW(FundingDetails[#Headers])),ROW(6:6)),1),\"\")","v":""},{"$f":"IFERROR(INDEX(FundingDetails[ALLOCATION APPROUVÉE],_xlfn.AGGREGATE(15,6,IF((FundingDetails[DEMANDE APPROUVÉE]=\"✓\")*(FundingDetails[TYPE DE FINANCEMENT]=\"Frais liés à la transformation\"),ROW(FundingDetails[ALLOCATION APPROUVÉE])-ROW(FundingDetails[#Headers])),ROW(6:6)),1),\"\")","v":""},0]
[null,{"$f":"IFERROR(INDEX(FundingDetails[NOM DU SITE OU DE L’EMPLACEMENT],_xlfn.AGGREGATE(15,6,IF((FundingDetails[DEMANDE APPROUVÉE]=\"✓\")*(FundingDetails[TYPE DE FINANCEMENT]=\"Frais liés à la transformation\"),ROW(FundingDetails[DESCRIPTION])-ROW(FundingDetails[#Headers])),ROW(7:7)),1),\"\")","v":""},{"$f":"IFERROR(INDEX(FundingDetails[DESCRIPTION],_xlfn.AGGREGATE(15,6,IF((FundingDetails[DEMANDE APPROUVÉE]=\"✓\")*(FundingDetails[TYPE DE FINANCEMENT]=\"Frais liés à la transformation\"),ROW(FundingDetails[DESCRIPTION])-ROW(FundingDetails[#Headers])),ROW(7:7)),1),\"\")","v":""},{"$f":"IFERROR(INDEX(FundingDetails[ALLOCATION APPROUVÉE],_xlfn.AGGREGATE(15,6,IF((FundingDetails[DEMANDE APPROUVÉE]=\"✓\")*(FundingDetails[TYPE DE FINANCEMENT]=\"Frais liés à la transformation\"),ROW(FundingDetails[ALLOCATION APPROUVÉE])-ROW(FundingDetails[#Headers])),ROW(7:7)),1),\"\")","v":""},0]
[null,{"$f":"IFERROR(INDEX(FundingDetails[NOM DU SITE OU DE L’EMPLACEMENT],_xlfn.AGGREGATE(15,6,IF((FundingDetails[DEMANDE APPROUVÉE]=\"✓\")*(FundingDetails[TYPE DE FINANCEMENT]=\"Frais liés à la transformation\"),ROW(FundingDetails[DESCRIPTION])-ROW(FundingDetails[#Headers])),ROW(8:8)),1),\"\")","v":""},{"$f":"IFERROR(INDEX(FundingDetails[DESCRIPTION],_xlfn.AGGREGATE(15,6,IF((FundingDetails[DEMANDE APPROUVÉE]=\"✓\")*(FundingDetails[TYPE DE FINANCEMENT]=\"Frais liés à la transformation\"),ROW(FundingDetails[DESCRIPTION])-ROW(FundingDetails[#Headers])),ROW(8:8)),1),\"\")","v":""},{"$f":"IFERROR(INDEX(FundingDetails[ALLOCATION APPROUVÉE],_xlfn.AGGREGATE(15,6,IF((FundingDetails[DEMANDE APPROUVÉE]=\"✓\")*(FundingDetails[TYPE DE FINANCEMENT]=\"Frais liés à la transformation\"),ROW(FundingDetails[ALLOCATION APPROUVÉE])-ROW(FundingDetails[#Headers])),ROW(8:8)),1),\"\")","v":""},0]
[null,{"$f":"IFERROR(INDEX(FundingDetails[NOM DU SITE OU DE L’EMPLACEMENT],_xlfn.AGGREGATE(15,6,IF((FundingDetails[DEMANDE APPROUVÉE]=\"✓\")*(FundingDetails[TYPE DE FINANCEMENT]=\"Frais liés à la transformation\"),ROW(FundingDetails[DESCRIPTION])-ROW(FundingDetails[#Headers])),ROW(9:9)),1),\"\")","v":""},{"$f":"IFERROR(INDEX(FundingDetails[DESCRIPTION],_xlfn.AGGREGATE(15,6,IF((FundingDetails[DEMANDE APPROUVÉE]=\"✓\")*(FundingDetails[TYPE DE FINANCEMENT]=\"Frais liés à la transformation\"),ROW(FundingDetails[DESCRIPTION])-ROW(FundingDetails[#Headers])),ROW(9:9)),1),\"\")","v":""},{"$f":"IFERROR(INDEX(FundingDetails[ALLOCATION APPROUVÉE],_xlfn.AGGREGATE(15,6,IF((FundingDetails[DEMANDE APPROUVÉE]=\"✓\")*(FundingDetails[TYPE DE FINANCEMENT]=\"Frais liés à la transformation\"),ROW(FundingDetails[ALLOCATION APPROUVÉE])-ROW(FundingDetails[#Headers])),ROW(9:9)),1),\"\")","v":""},0]
[null,{"$f":"IFERROR(INDEX(FundingDetails[NOM DU SITE OU DE L’EMPLACEMENT],_xlfn.AGGREGATE(15,6,IF((FundingDetails[DEMANDE APPROUVÉE]=\"✓\")*(FundingDetails[TYPE DE FINANCEMENT]=\"Frais liés à la transformation\"),ROW(FundingDetails[DESCRIPTION])-ROW(FundingDetails[#Headers])),ROW(8:8)),1),\"\")","v":""},{"$f":"IFERROR(INDEX(FundingDetails[DESCRIPTION],_xlfn.AGGREGATE(15,6,IF((FundingDetails[DEMANDE APPROUVÉE]=\"✓\")*(FundingDetails[TYPE DE FINANCEMENT]=\"Frais liés à la transformation\"),ROW(FundingDetails[DESCRIPTION])-ROW(FundingDetails[#Headers])),ROW(8:8)),1),\"\")","v":""},{"$f":"IFERROR(INDEX(FundingDetails[ALLOCATION APPROUVÉE],_xlfn.AGGREGATE(15,6,IF((FundingDetails[DEMANDE APPROUVÉE]=\"✓\")*(FundingDetails[TYPE DE FINANCEMENT]=\"Frais liés à la transformation\"),ROW(FundingDetails[ALLOCATION APPROUVÉE])-ROW(FundingDetails[#Headers])),ROW(8:8)),1),\"\")","v":""},0]
[null,"ÉCART ANNUEL (SI LE MONTANT EST POSITIF, LE FINANCEMENT EST PLUS ÉLEVÉ QUE LES DÉPENSES) ",null,{"$f":"SUBTOTAL(109,Trans_Rec[ALLOCATION APPROUVÉE])","v":0},{"$f":"E5-SUBTOTAL(109,Trans_Rec[MONTANT RÉEL PAYÉ])","v":0}]
[]
[null,"FINANCEMENT TOTAL DU MATÉRIEL DE JEUX ET DE L’ÉQUIPEMENT REÇU POUR L’ANNÉE  ",null,null,{"$f":"SUMIFS(FundingDetails[ALLOCATION APPROUVÉE],FundingDetails[TYPE DE FINANCEMENT],\"Play-Based Materials & Equipment Funding\")","v":0},"À l’USAGE DU CASSDN SEULEMENT"]
[null,"SITE ","DÉPENSES APPROUVÉES","ALLOCATION APPROUVÉE","MONTANT RÉEL PAYÉ","DOCUMENTS À L'APPUI REÇUS ","NOTES"]
[null,{"$f":"IFERROR(INDEX(FundingDetails[NOM DU SITE OU DE L’EMPLACEMENT],_xlfn.AGGREGATE(15,6,IF((FundingDetails[DEMANDE APPROUVÉE]=\"✓\")*(FundingDetails[TYPE DE FINANCEMENT]=\"Dépenses pour le matériel de jeux et l'équipement\"),ROW(FundingDetails[DESCRIPTION])-ROW(FundingDetails[#Headers])),ROW(1:1)),1),\"\")","v":""},{"$f":"IFERROR(INDEX(FundingDetails[DESCRIPTION],_xlfn.AGGREGATE(15,6,IF((FundingDetails[DEMANDE APPROUVÉE]=\"✓\")*(FundingDetails[TYPE DE FINANCEMENT]=\"Dépenses pour le matériel de jeux et l'équipement\"),ROW(FundingDetails[DESCRIPTION])-ROW(FundingDetails[#Headers])),ROW(1:1)),1),\"\")","v":""},{"$f":"IFERROR(INDEX(FundingDetails[ALLOCATION APPROUVÉE],_xlfn.AGGREGATE(15,6,IF((FundingDetails[DEMANDE APPROUVÉE]=\"✓\")*(FundingDetails[TYPE DE FINANCEMENT]=\"Dépenses pour le matériel de jeux et l'équipement\"),ROW(FundingDetails[ALLOCATION APPROUVÉE])-ROW(FundingDetails[#Headers])),ROW(1:1)),1),\"\")","v":""},0]
[null,{"$f":"IFERROR(INDEX(FundingDetails[NOM DU SITE OU DE L’EMPLACEMENT],_xlfn.AGGREGATE(15,6,IF((FundingDetails[DEMANDE APPROUVÉE]=\"✓\")*(FundingDetails[TYPE DE FINANCEMENT]=\"Dépenses pour le matériel de jeux et l'équipement\"),ROW(FundingDetails[DESCRIPTION])-ROW(FundingDetails[#Headers])),ROW(2:2)),1),\"\")","v":""},{"$f":"IFERROR(INDEX(FundingDetails[DESCRIPTION],_xlfn.AGGREGATE(15,6,IF((FundingDetails[DEMANDE APPROUVÉE]=\"✓\")*(FundingDetails[TYPE DE FINANCEMENT]=\"Dépenses pour le matériel de jeux et l'équipement\"),ROW(FundingDetails[DESCRIPTION])-ROW(FundingDetails[#Headers])),ROW(2:2)),1),\"\")","v":""},{"$f":"IFERROR(INDEX(FundingDetails[ALLOCATION APPROUVÉE],_xlfn.AGGREGATE(15,6,IF((FundingDetails[DEMANDE APPROUVÉE]=\"✓\")*(FundingDetails[TYPE DE FINANCEMENT]=\"Dépenses pour le matériel de jeux et l'équipement\"),ROW(FundingDetails[ALLOCATION APPROUVÉE])-ROW(FundingDetails[#Headers])),ROW(2:2)),1),\"\")","v":""},0]
[null,{"$f":"IFERROR(INDEX(FundingDetails[NOM DU SITE OU DE L’EMPLACEMENT],_xlfn.AGGREGATE(15,6,IF((FundingDetails[DEMANDE APPROUVÉE]=\"✓\")*(FundingDetails[TYPE DE FINANCEMENT]=\"Dépenses pour le matériel de jeux et l'équipement\"),ROW(FundingDetails[DESCRIPTION])-ROW(FundingDetails[#Headers])),ROW(3:3)),1),\"\")","v":""},{"$f":"IFERROR(INDEX(FundingDetails[DESCRIPTION],_xlfn.AGGREGATE(15,6,IF((FundingDetails[DEMANDE APPROUVÉE]=\"✓\")*(FundingDetails[TYPE DE FINANCEMENT]=\"Dépenses pour le matériel de jeux et l'équipement\"),ROW(FundingDetails[DESCRIPTION])-ROW(FundingDetails[#Headers])),ROW(3:3)),1),\"\")","v":""},{"$f":"IFERROR(INDEX(FundingDetails[ALLOCATION APPROUVÉE],_xlfn.AGGREGATE(15,6,IF((FundingDetails[DEMANDE APPROUVÉE]=\"✓\")*(FundingDetails[TYPE DE FINANCEMENT]=\"Dépenses pour le matériel de jeux et l'équipement\"),ROW(FundingDetails[ALLOCATION APPROUVÉE])-ROW(FundingDetails[#Headers])),ROW(3:3)),1),\"\")","v":""},0]
[null,{"$f":"IFERROR(INDEX(FundingDetails[NOM DU SITE OU DE L’EMPLACEMENT],_xlfn.AGGREGATE(15,6,IF((FundingDetails[DEMANDE APPROUVÉE]=\"✓\")*(FundingDetails[TYPE DE FINANCEMENT]=\"Dépenses pour le matériel de jeux et l'équipement\"),ROW(FundingDetails[DESCRIPTION])-ROW(FundingDetails[#Headers])),ROW(4:4)),1),\"\")","v":""},{"$f":"IFERROR(INDEX(FundingDetails[DESCRIPTION],_xlfn.AGGREGATE(15,6,IF((FundingDetails[DEMANDE APPROUVÉE]=\"✓\")*(FundingDetails[TYPE DE FINANCEMENT]=\"Dépenses pour le matériel de jeux et l'équipement\"),ROW(FundingDetails[DESCRIPTION])-ROW(FundingDetails[#Headers])),ROW(4:4)),1),\"\")","v":""},{"$f":"IFERROR(INDEX(FundingDetails[ALLOCATION APPROUVÉE],_xlfn.AGGREGATE(15,6,IF((FundingDetails[DEMANDE APPROUVÉE]=\"✓\")*(FundingDetails[TYPE DE FINANCEMENT]=\"Dépenses pour le matériel de jeux et l'équipement\"),ROW(FundingDetails[ALLOCATION APPROUVÉE])-ROW(FundingDetails[#Headers])),ROW(4:4)),1),\"\")","v":""},0]
[null,{"$f":"IFERROR(INDEX(FundingDetails[NOM DU SITE OU DE L’EMPLACEMENT],_xlfn.AGGREGATE(15,6,IF((FundingDetails[DEMANDE APPROUVÉE]=\"✓\")*(FundingDetails[TYPE DE FINANCEMENT]=\"Dépenses pour le matériel de jeux et l'équipement\"),ROW(FundingDetails[DESCRIPTION])-ROW(FundingDetails[#Headers])),ROW(5:5)),1),\"\")","v":""},{"$f":"IFERROR(INDEX(FundingDetails[DESCRIPTION],_xlfn.AGGREGATE(15,6,IF((FundingDetails[DEMANDE APPROUVÉE]=\"✓\")*(FundingDetails[TYPE DE FINANCEMENT]=\"Dépenses pour le matériel de jeux et l'équipement\"),ROW(FundingDetails[DESCRIPTION])-ROW(FundingDetails[#Headers])),ROW(5:5)),1),\"\")","v":""},{"$f":"IFERROR(INDEX(FundingDetails[ALLOCATION APPROUVÉE],_xlfn.AGGREGATE(15,6,IF((FundingDetails[DEMANDE APPROUVÉE]=\"✓\")*(FundingDetails[TYPE DE FINANCEMENT]=\"Dépenses pour le matériel de jeux et l'équipement\"),ROW(FundingDetails[ALLOCATION APPROUVÉE])-ROW(FundingDetails[#Headers])),ROW(5:5)),1),\"\")","v":""},0]
[null,{"$f":"IFERROR(INDEX(FundingDetails[NOM DU SITE OU DE L’EMPLACEMENT],_xlfn.AGGREGATE(15,6,IF((FundingDetails[DEMANDE APPROUVÉE]=\"✓\")*(FundingDetails[TYPE DE FINANCEMENT]=\"Dépenses pour le matériel de jeux et l'équipement\"),ROW(FundingDetails[DESCRIPTION])-ROW(FundingDetails[#Headers])),ROW(6:6)),1),\"\")","v":""},{"$f":"IFERROR(INDEX(FundingDetails[DESCRIPTION],_xlfn.AGGREGATE(15,6,IF((FundingDetails[DEMANDE APPROUVÉE]=\"✓\")*(FundingDetails[TYPE DE FINANCEMENT]=\"Dépenses pour le matériel de jeux et l'équipement\"),ROW(FundingDetails[DESCRIPTION])-ROW(FundingDetails[#Headers])),ROW(6:6)),1),\"\")","v":""},{"$f":"IFERROR(INDEX(FundingDetails[ALLOCATION APPROUVÉE],_xlfn.AGGREGATE(15,6,IF((FundingDetails[DEMANDE APPROUVÉE]=\"✓\")*(FundingDetails[TYPE DE FINANCEMENT]=\"Dépenses pour le matériel de jeux et l'équipement\"),ROW(FundingDetails[ALLOCATION APPROUVÉE])-ROW(FundingDetails[#Headers])),ROW(6:6)),1),\"\")","v":""},0]
[null,{"$f":"IFERROR(INDEX(FundingDetails[NOM DU SITE OU DE L’EMPLACEMENT],_xlfn.AGGREGATE(15,6,IF((FundingDetails[DEMANDE APPROUVÉE]=\"✓\")*(FundingDetails[TYPE DE FINANCEMENT]=\"Dépenses pour le matériel de jeux et l'équipement\"),ROW(FundingDetails[DESCRIPTION])-ROW(FundingDetails[#Headers])),ROW(7:7)),1),\"\")","v":""},{"$f":"IFERROR(INDEX(FundingDetails[DESCRIPTION],_xlfn.AGGREGATE(15,6,IF((FundingDetails[DEMANDE APPROUVÉE]=\"✓\")*(FundingDetails[TYPE DE FINANCEMENT]=\"Dépenses pour le matériel de jeux et l'équipement\"),ROW(FundingDetails[DESCRIPTION])-ROW(FundingDetails[#Headers])),ROW(7:7)),1),\"\")","v":""},{"$f":"IFERROR(INDEX(FundingDetails[ALLOCATION APPROUVÉE],_xlfn.AGGREGATE(15,6,IF((FundingDetails[DEMANDE APPROUVÉE]=\"✓\")*(FundingDetails[TYPE DE FINANCEMENT]=\"Dépenses pour le matériel de jeux et l'équipement\"),ROW(FundingDetails[ALLOCATION APPROUVÉE])-ROW(FundingDetails[#Headers])),ROW(7:7)),1),\"\")","v":""},0]
[null,{"$f":"IFERROR(INDEX(FundingDetails[NOM DU SITE OU DE L’EMPLACEMENT],_xlfn.AGGREGATE(15,6,IF((FundingDetails[DEMANDE APPROUVÉE]=\"✓\")*(FundingDetails[TYPE DE FINANCEMENT]=\"Dépenses pour le matériel de jeux et l'équipement\"),ROW(FundingDetails[DESCRIPTION])-ROW(FundingDetails[#Headers])),ROW(7:7)),1),\"\")","v":""},{"$f":"IFERROR(INDEX(FundingDetails[DESCRIPTION],_xlfn.AGGREGATE(15,6,IF((FundingDetails[DEMANDE APPROUVÉE]=\"✓\")*(FundingDetails[TYPE DE FINANCEMENT]=\"Dépenses pour le matériel de jeux et l'équipement\"),ROW(FundingDetails[DESCRIPTION])-ROW(FundingDetails[#Headers])),ROW(7:7)),1),\"\")","v":""},{"$f":"IFERROR(INDEX(FundingDetails[ALLOCATION APPROUVÉE],_xlfn.AGGREGATE(15,6,IF((FundingDetails[DEMANDE APPROUVÉE]=\"✓\")*(FundingDetails[TYPE DE FINANCEMENT]=\"Dépenses pour le matériel de jeux et l'équipement\"),ROW(FundingDetails[ALLOCATION APPROUVÉE])-ROW(FundingDetails[#Headers])),ROW(7:7)),1),\"\")","v":""},0]
[null,{"$f":"IFERROR(INDEX(FundingDetails[NOM DU SITE OU DE L’EMPLACEMENT],_xlfn.AGGREGATE(15,6,IF((FundingDetails[DEMANDE APPROUVÉE]=\"✓\")*(FundingDetails[TYPE DE FINANCEMENT]=\"Dépenses pour le matériel de jeux et l'équipement\"),ROW(FundingDetails[DESCRIPTION])-ROW(FundingDetails[#Headers])),ROW(7:7)),1),\"\")","v":""},{"$f":"IFERROR(INDEX(FundingDetails[DESCRIPTION],_xlfn.AGGREGATE(15,6,IF((FundingDetails[DEMANDE APPROUVÉE]=\"✓\")*(FundingDetails[TYPE DE FINANCEMENT]=\"Dépenses pour le matériel de jeux et l'équipement\"),ROW(FundingDetails[DESCRIPTION])-ROW(FundingDetails[#Headers])),ROW(7:7)),1),\"\")","v":""},{"$f":"IFERROR(INDEX(FundingDetails[ALLOCATION APPROUVÉE],_xlfn.AGGREGATE(15,6,IF((FundingDetails[DEMANDE APPROUVÉE]=\"✓\")*(FundingDetails[TYPE DE FINANCEMENT]=\"Dépenses pour le matériel de jeux et l'équipement\"),ROW(FundingDetails[ALLOCATION APPROUVÉE])-ROW(FundingDetails[#Headers])),ROW(7:7)),1),\"\")","v":""},0]
[null,{"$f":"IFERROR(INDEX(FundingDetails[NOM DU SITE OU DE L’EMPLACEMENT],_xlfn.AGGREGATE(15,6,IF((FundingDetails[DEMANDE APPROUVÉE]=\"✓\")*(FundingDetails[TYPE DE FINANCEMENT]=\"Dépenses pour le matériel de jeux et l'équipement\"),ROW(FundingDetails[DESCRIPTION])-ROW(FundingDetails[#Headers])),ROW(7:7)),1),\"\")","v":""},{"$f":"IFERROR(INDEX(FundingDetails[DESCRIPTION],_xlfn.AGGREGATE(15,6,IF((FundingDetails[DEMANDE APPROUVÉE]=\"✓\")*(FundingDetails[TYPE DE FINANCEMENT]=\"Dépenses pour le matériel de jeux et l'équipement\"),ROW(FundingDetails[DESCRIPTION])-ROW(FundingDetails[#Headers])),ROW(7:7)),1),\"\")","v":""},{"$f":"IFERROR(INDEX(FundingDetails[ALLOCATION APPROUVÉE],_xlfn.AGGREGATE(15,6,IF((FundingDetails[DEMANDE APPROUVÉE]=\"✓\")*(FundingDetails[TYPE DE FINANCEMENT]=\"Dépenses pour le matériel de jeux et l'équipement\"),ROW(FundingDetails[ALLOCATION APPROUVÉE])-ROW(FundingDetails[#Headers])),ROW(7:7)),1),\"\")","v":""},0]
[null,"ÉCART ANNUEL (SI LE MONTANT EST POSITIF, LE FINANCEMENT EST PLUS ÉLEVÉ QUE LES DÉPENSES) ",null,{"$f":"SUBTOTAL(109,Play_Rec[ALLOCATION APPROUVÉE])","v":0},{"$f":"E19-SUBTOTAL(109,Play_Rec[MONTANT RÉEL PAYÉ])","v":0}]
[]
[null,"FINANCEMENT TOTAL POUR LES RÉPARATIONS ET L’ENTRETIEN REÇU POUR L’ANNÉE  ",null,null,{"$f":"SUMIFS(FundingDetails[ALLOCATION APPROUVÉE],FundingDetails[TYPE DE FINANCEMENT],\"Repairs & Maintenance Funding\")","v":0},"À l’USAGE DU CASSDN SEULEMENT"]
[null,"SITE ","DÉPENSES APPROUVÉES","ALLOCATION APPROUVÉE","MONTANT RÉEL PAYÉ","DOCUMENTS À L'APPUI REÇUS ","NOTES"]
[null,{"$f":"IFERROR(INDEX(FundingDetails[NOM DU SITE OU DE L’EMPLACEMENT],_xlfn.AGGREGATE(15,6,IF((FundingDetails[DEMANDE APPROUVÉE]=\"✓\")*(FundingDetails[TYPE DE FINANCEMENT]=\"Frais de réparations et d'entretien\"),ROW(FundingDetails[DESCRIPTION])-ROW(FundingDetails[#Headers])),ROW(1:1)),1),\"\")","v":""},{"$f":"IFERROR(INDEX(FundingDetails[DESCRIPTION],_xlfn.AGGREGATE(15,6,IF((FundingDetails[DEMANDE APPROUVÉE]=\"✓\")*(FundingDetails[TYPE DE FINANCEMENT]=\"Frais de réparations et d'entretien\"),ROW(FundingDetails[DESCRIPTION])-ROW(FundingDetails[#Headers])),ROW(1:1)),1),\"\")","v":""},{"$f":"IFERROR(INDEX(FundingDetails[ALLOCATION APPROUVÉE],_xlfn.AGGREGATE(15,6,IF((FundingDetails[DEMANDE APPROUVÉE]=\"✓\")*(FundingDetails[TYPE DE FINANCEMENT]=\"Frais de réparations et d'entretien\"),ROW(FundingDetails[ALLOCATION APPROUVÉE])-ROW(FundingDetails[#Headers])),ROW(1:1)),1),\"\")","v":""},0]
[null,{"$f":"IFERROR(INDEX(FundingDetails[NOM DU SITE OU DE L’EMPLACEMENT],_xlfn.AGGREGATE(15,6,IF((FundingDetails[DEMANDE APPROUVÉE]=\"✓\")*(FundingDetails[TYPE DE FINANCEMENT]=\"Frais de réparations et d'entretien\"),ROW(FundingDetails[DESCRIPTION])-ROW(FundingDetails[#Headers])),ROW(2:2)),1),\"\")","v":""},{"$f":"IFERROR(INDEX(FundingDetails[DESCRIPTION],_xlfn.AGGREGATE(15,6,IF((FundingDetails[DEMANDE APPROUVÉE]=\"✓\")*(FundingDetails[TYPE DE FINANCEMENT]=\"Frais de réparations et d'entretien\"),ROW(FundingDetails[DESCRIPTION])-ROW(FundingDetails[#Headers])),ROW(2:2)),1),\"\")","v":""},{"$f":"IFERROR(INDEX(FundingDetails[ALLOCATION APPROUVÉE],_xlfn.AGGREGATE(15,6,IF((FundingDetails[DEMANDE APPROUVÉE]=\"✓\")*(FundingDetails[TYPE DE FINANCEMENT]=\"Frais de réparations et d'entretien\"),ROW(FundingDetails[ALLOCATION APPROUVÉE])-ROW(FundingDetails[#Headers])),ROW(2:2)),1),\"\")","v":""},0]
[null,{"$f":"IFERROR(INDEX(FundingDetails[NOM DU SITE OU DE L’EMPLACEMENT],_xlfn.AGGREGATE(15,6,IF((FundingDetails[DEMANDE APPROUVÉE]=\"✓\")*(FundingDetails[TYPE DE FINANCEMENT]=\"Frais de réparations et d'entretien\"),ROW(FundingDetails[DESCRIPTION])-ROW(FundingDetails[#Headers])),ROW(3:3)),1),\"\")","v":""},{"$f":"IFERROR(INDEX(FundingDetails[DESCRIPTION],_xlfn.AGGREGATE(15,6,IF((FundingDetails[DEMANDE APPROUVÉE]=\"✓\")*(FundingDetails[TYPE DE FINANCEMENT]=\"Frais de réparations et d'entretien\"),ROW(FundingDetails[DESCRIPTION])-ROW(FundingDetails[#Headers])),ROW(3:3)),1),\"\")","v":""},{"$f":"IFERROR(INDEX(FundingDetails[ALLOCATION APPROUVÉE],_xlfn.AGGREGATE(15,6,IF((FundingDetails[DEMANDE APPROUVÉE]=\"✓\")*(FundingDetails[TYPE DE FINANCEMENT]=\"Frais de réparations et d'entretien\"),ROW(FundingDetails[ALLOCATION APPROUVÉE])-ROW(FundingDetails[#Headers])),ROW(3:3)),1),\"\")","v":""},0]
[null,{"$f":"IFERROR(INDEX(FundingDetails[NOM DU SITE OU DE L’EMPLACEMENT],_xlfn.AGGREGATE(15,6,IF((FundingDetails[DEMANDE APPROUVÉE]=\"✓\")*(FundingDetails[TYPE DE FINANCEMENT]=\"Frais de réparations et d'entretien\"),ROW(FundingDetails[DESCRIPTION])-ROW(FundingDetails[#Headers])),ROW(4:4)),1),\"\")","v":""},{"$f":"IFERROR(INDEX(FundingDetails[DESCRIPTION],_xlfn.AGGREGATE(15,6,IF((FundingDetails[DEMANDE APPROUVÉE]=\"✓\")*(FundingDetails[TYPE DE FINANCEMENT]=\"Frais de réparations et d'entretien\"),ROW(FundingDetails[DESCRIPTION])-ROW(FundingDetails[#Headers])),ROW(4:4)),1),\"\")","v":""},{"$f":"IFERROR(INDEX(FundingDetails[ALLOCATION APPROUVÉE],_xlfn.AGGREGATE(15,6,IF((FundingDetails[DEMANDE APPROUVÉE]=\"✓\")*(FundingDetails[TYPE DE FINANCEMENT]=\"Frais de réparations et d'entretien\"),ROW(FundingDetails[ALLOCATION APPROUVÉE])-ROW(FundingDetails[#Headers])),ROW(4:4)),1),\"\")","v":""},0]
[null,{"$f":"IFERROR(INDEX(FundingDetails[NOM DU SITE OU DE L’EMPLACEMENT],_xlfn.AGGREGATE(15,6,IF((FundingDetails[DEMANDE APPROUVÉE]=\"✓\")*(FundingDetails[TYPE DE FINANCEMENT]=\"Frais de réparations et d'entretien\"),ROW(FundingDetails[DESCRIPTION])-ROW(FundingDetails[#Headers])),ROW(5:5)),1),\"\")","v":""},{"$f":"IFERROR(INDEX(FundingDetails[DESCRIPTION],_xlfn.AGGREGATE(15,6,IF((FundingDetails[DEMANDE APPROUVÉE]=\"✓\")*(FundingDetails[TYPE DE FINANCEMENT]=\"Frais de réparations et d'entretien\"),ROW(FundingDetails[DESCRIPTION])-ROW(FundingDetails[#Headers])),ROW(5:5)),1),\"\")","v":""},{"$f":"IFERROR(INDEX(FundingDetails[ALLOCATION APPROUVÉE],_xlfn.AGGREGATE(15,6,IF((FundingDetails[DEMANDE APPROUVÉE]=\"✓\")*(FundingDetails[TYPE DE FINANCEMENT]=\"Frais de réparations et d'entretien\"),ROW(FundingDetails[ALLOCATION APPROUVÉE])-ROW(FundingDetails[#Headers])),ROW(5:5)),1),\"\")","v":""},0]
[null,{"$f":"IFERROR(INDEX(FundingDetails[NOM DU SITE OU DE L’EMPLACEMENT],_xlfn.AGGREGATE(15,6,IF((FundingDetails[DEMANDE APPROUVÉE]=\"✓\")*(FundingDetails[TYPE DE FINANCEMENT]=\"Frais de réparations et d'entretien\"),ROW(FundingDetails[DESCRIPTION])-ROW(FundingDetails[#Headers])),ROW(6:6)),1),\"\")","v":""},null,null,0]
[null,{"$f":"IFERROR(INDEX(FundingDetails[NOM DU SITE OU DE L’EMPLACEMENT],_xlfn.AGGREGATE(15,6,IF((FundingDetails[DEMANDE APPROUVÉE]=\"✓\")*(FundingDetails[TYPE DE FINANCEMENT]=\"Frais de réparations et d'entretien\"),ROW(FundingDetails[DESCRIPTION])-ROW(FundingDetails[#Headers])),ROW(6:6)),1),\"\")","v":""},null,null,0]
[null,{"$f":"IFERROR(INDEX(FundingDetails[NOM DU SITE OU DE L’EMPLACEMENT],_xlfn.AGGREGATE(15,6,IF((FundingDetails[DEMANDE APPROUVÉE]=\"✓\")*(FundingDetails[TYPE DE FINANCEMENT]=\"Frais de réparations et d'entretien\"),ROW(FundingDetails[DESCRIPTION])-ROW(FundingDetails[#Headers])),ROW(8:8)),1),\"\")","v":""},null,null,0]
[null,{"$f":"IFERROR(INDEX(FundingDetails[NOM DU SITE OU DE L’EMPLACEMENT],_xlfn.AGGREGATE(15,6,IF((FundingDetails[DEMANDE APPROUVÉE]=\"✓\")*(FundingDetails[TYPE DE FINANCEMENT]=\"Frais de réparations et d'entretien\"),ROW(FundingDetails[DESCRIPTION])-ROW(FundingDetails[#Headers])),ROW(6:6)),1),\"\")","v":""},{"$f":"IFERROR(INDEX(FundingDetails[DESCRIPTION],_xlfn.AGGREGATE(15,6,IF((FundingDetails[DEMANDE APPROUVÉE]=\"✓\")*(FundingDetails[TYPE DE FINANCEMENT]=\"Frais de réparations et d'entretien\"),ROW(FundingDetails[DESCRIPTION])-ROW(FundingDetails[#Headers])),ROW(6:6)),1),\"\")","v":""},{"$f":"IFERROR(INDEX(FundingDetails[ALLOCATION APPROUVÉE],_xlfn.AGGREGATE(15,6,IF((FundingDetails[DEMANDE APPROUVÉE]=\"✓\")*(FundingDetails[TYPE DE FINANCEMENT]=\"Frais de réparations et d'entretien\"),ROW(FundingDetails[ALLOCATION APPROUVÉE])-ROW(FundingDetails[#Headers])),ROW(6:6)),1),\"\")","v":""},0]
[null,{"$f":"IFERROR(INDEX(FundingDetails[NOM DU SITE OU DE L’EMPLACEMENT],_xlfn.AGGREGATE(15,6,IF((FundingDetails[DEMANDE APPROUVÉE]=\"✓\")*(FundingDetails[TYPE DE FINANCEMENT]=\"Frais de réparations et d'entretien\"),ROW(FundingDetails[DESCRIPTION])-ROW(FundingDetails[#Headers])),ROW(7:7)),1),\"\")","v":""},{"$f":"IFERROR(INDEX(FundingDetails[DESCRIPTION],_xlfn.AGGREGATE(15,6,IF((FundingDetails[DEMANDE APPROUVÉE]=\"✓\")*(FundingDetails[TYPE DE FINANCEMENT]=\"Frais de réparations et d'entretien\"),ROW(FundingDetails[DESCRIPTION])-ROW(FundingDetails[#Headers])),ROW(7:7)),1),\"\")","v":""},{"$f":"IFERROR(INDEX(FundingDetails[ALLOCATION APPROUVÉE],_xlfn.AGGREGATE(15,6,IF((FundingDetails[DEMANDE APPROUVÉE]=\"✓\")*(FundingDetails[TYPE DE FINANCEMENT]=\"Frais de réparations et d'entretien\"),ROW(FundingDetails[ALLOCATION APPROUVÉE])-ROW(FundingDetails[#Headers])),ROW(7:7)),1),\"\")","v":""},0]
[null,"ÉCART ANNUEL (SI LE MONTANT EST POSITIF, LE FINANCEMENT EST PLUS ÉLEVÉ QUE LES DÉPENSES) ",null,{"$f":"SUBTOTAL(109,Maint_Rec[ALLOCATION APPROUVÉE])","v":0},{"$f":"E33-SUBTOTAL(109,Maint_Rec[MONTANT RÉEL PAYÉ])","v":0}]
[]
[null,"ÉCART TOTAL (SI LE MONTANT EST POSITIF, LE FINANCEMENT EST PLUS ÉLEVÉ QUE LES DÉPENSES) ",null,null,{"$f":"Trans_Rec[[#Totals],[MONTANT RÉEL PAYÉ]]+Play_Rec[[#Totals],[MONTANT RÉEL PAYÉ]]+Maint_Rec[[#Totals],[MONTANT RÉEL PAYÉ]]","v":0}]
[]
[null,"NOTE IMPORTANTE : Vous devez soumettre au CASSDN une copie de tous les reçus, factures et preuves de paiement. Vous devez les conserver dans vos dossiers pendant un minimum de 7 ans."]
[]
[null,"COMMENTAIRES:"]
[]
[]
[]
[]
[]
[]
[]
[]
[]
[null,"ATTESTATION: J’atteste par la présente que les informations fournies dans ce formulaire et les documents financiers ci-joints sont exacts, autant que je sache."]
[]
[null,"RAPPORT COMPLÉTÉ PAR"]
[null,"Nom:"]
[null,"Titre:"]
[null,"Date:"]

{"sheet":"Validations","index":2,"n_rows":37,"n_cols":23,"rows_kept":37,"cut":false,"hidden":true,"merged":[]}
[]
[null,"GROUPE D'ÂGE",null,"PRIORITÉ DE L'AGENCE",null,"NOM LÉGAL","ID",null,"Sites","Sites","Sites","Sites","Sites","Sites","Sites","Sites","Sites","Sites","Sites","Sites","Sites","Sites","Sites"]
[null,"Poupons",null,"Ne respectent pas les exigences",null,"1890390 Ontario Inc O/A Friends Forever Child Care","FFCC",null,"Friends Forever Child Care Centre","Garderie Beausoleil-Ecole Lorrain","Kidz Kastle","KIND Forest School","Kids Campus - Holy Cross","Little Wings Child Care Center","Mattawa Child Care Centre","Montessori Children's House (2685594 Ltd)","Montessori Learning Centre","NBDC - Main","North Bay Indigenous Hub","Garderie de Temagami Day Care","Ferris Glen Learning Centre-Ferris Glen","Centre Base","Alliance School Age Program"]
[null,"Bambins",null,"À risque de ne pas respecter les exigences",null,"Les Compagnons des Franc Loisirs","GS",null,"Friends Forever Home Agency","Garderie Dragon d'or - Ecole Heritage",null,null,"Kids' Club- St. Lukes",null,null,null,null,"NBDC - School Age Program",null,null,"Silver Birches Child Care-Silver Birches","Home Child Care","Chippewa Early Learning Child Care Centre"]
[null,"Préscolaires",null,1,null,"Community Resource Centre (Killaloe) Inc","CRCK",null,null,"Garderie la Place ensoleillee-St. Vincent",null,null,"Kids Connection- St. Huberts",null,null,null,null,null,null,null,"West Ferris Day Nursery - Main","La Niche des Lionceaux- Résurrection","E.T. Carmicheal School Age Program"]
[null,"Maternelle/Jardin",null,2,null,"KIND Forest School","KIND",null,null,"Garderie Le Petit Dragon - Ecole Odyssée",null,null,"Kids Corner - Mother St. Bride",null,null,null,null,null,null,null,"West Ferris SA Learning Ctr. Sunset Park","La Ruche des Petites Abeilles-Margueritt D'Youville","EW Norman Early Learning Child Care Centre"]
[null,"Âge scolaire",null,3,null,"The Lindsay Weld Centre for Children","LWCFC",null,null,"Garderie Rayons de Soleil- Ecole Ste. Anne",null,null,"Kids Crew - St. Alexander",null,null,null,null,null,null,null,null,"La Tanière des Tout-Petits-Jeunesse Active","Home Child Care"]
[null,"Regroupement familial",null,4,null,"North Bay Military Family Resource Centre","LWCC",null,null,"Garderie Sol La-Ecole St. Thomas d'Aquin",null,null,"Lindsay Weld Centre for Children - Main",null,null,null,null,null,null,null,null,"Service de Garde des Louveteaux-St. Joseph","Mother St. Bride Early Learning Child Care Centre"]
[null,"Tous les groupes d'âge",null,5,null,"Mattawa Child Care Centre","MCC",null,null,"Garderie Soleil La- Main Site",null,null,null,null,null,null,null,null,null,null,null,"Service de garde École Christ- Roi","Our Lady of Fatima-Early Learning CCC"]
[null,"Poupons/Bambins",null,6,null,"Montessori Children's House (2685594 Ltd)","MCH",null,null,"Garderie Tournesol-Ecole St. Raymond",null,null,null,null,null,null,null,null,null,null,null,"White Woods After School Program","Our Lady of Sorrows Early Learning CCC"]
[null,"Poupons/Bambins/Préscolaires",null,7,null,"Montessori Learning Centre","MLC",null,null,null,null,null,null,null,null,null,null,null,null,null,null,null,"St. Francis Early Learning Child Care Centre"]
[null,"Poupons/Préscolaires",null,8,null,"1168108 Ontario Inc. O/A North Bay Daycare Centre","NBDC",null,null,null,null,null,null,null,null,null,null,null,null,null,null,null,"Vincent Massey School Age Program"]
[null,"Bambins/Préscolaires",null,9,null,"North Bay Indigenous Hub","NBIH",null,null,null,null,null,null,null,null,null,null,null,null,null,null,null,"Woodland Early Learning Child Care Centre"]
[null,"Maternelle/Jardin/Âge scolaire",null,10,null,"Garderie de Temagami Day Care","TCC"]
[null,null,null,11,null,"West Ferris Day Nursery Inc.","WFDN"]
[null,null,null,12,null,"West Nipissing Child Care Corporation","WNCCC"]
[null,null,null,13,null,"YMCA of North Bay & District","YMCA"]
[null,"TYPE DE FINANCEMENT",null,14]
[null,"Frais de réparations et d'entretien",null,15]
[null,"Dépenses pour le matériel de jeux et l'équipement",null,16]
[null,"Frais liés à la transformation",null,17]
[null,null,null,18]
[null,null,null,19]
[null,null,null,20]
[null,"RAISON DE LA DEMANDE"]
[null,"Délivrance de permis en vertu de la loi de 2014 sur la garde d'enfant et la petite enfance",null,"Marks"]
[null,"Ordonnance et recommendations du Bureau de santé",null,"✓"]
[null,"Ordonnance et recommendations du Code de prévention des incendies de l'Ontario",null,"x"]
[null,"Ordonnances et recommendation de la Loi sur la protection et la promotion de la santé"]
[null,"Préoccupations en matière de santé et sécurité"]
[null,"Autre"]
[]
[]
[null,"ÉTAT D’AVANCEMENT DU PROJET "]
[null,"Proposé"]
[null,"En cours"]
[null,"Terminé"]

{"sheet":"Site Details","index":3,"n_rows":50,"n_cols":8,"rows_kept":50,"cut":false,"hidden":true,"merged":[]}
["Nom légal ","Nom","POUPONS","BAMBINS","PRÉSCOLAIRES","MATERNELLE/JARDIN","ÂGE SCOLAIRE","REGROUPEMENT FAMILIAL"]
["1890390 Ontario Inc O/A Friends Forever Child Care","Friends Forever Child Care Centre",10,30,44,20,20,0]
["1890390 Ontario Inc O/A Friends Forever Child Care","Friends Forever Home Agency"]
["Les Compagnons des Franc Loisirs","Garderie Soleil La- Main Site",10,15,48,52,60,0]
["Les Compagnons des Franc Loisirs","Garderie Rayons de Soleil-Ecole Ste. Anne",6,15,0,0,18,0]
["Les Compagnons des Franc Loisirs","Garderie Tournesol-Ecole St. Raymond",6,0,24,20,15,0]
["Les Compagnons des Franc Loisirs","Garderie Beausoleil-Ecole Lorrain",0,0,0,0,0,15]
["Les Compagnons des Franc Loisirs","Garderie Le Petit Dragon - Ecole Odyssée",10,0,24,0,30,0]
["Les Compagnons des Franc Loisirs","Garderie Dragon d'or - Ecole Heritage",0,0,0,26,60,0]
["Les Compagnons des Franc Loisirs","Garderie Sol La-Ecole St. Thomas d'Aquin",6,0,24,0,30,0]
["Les Compagnons des Franc Loisirs","Garderie la Place ensoleillee-St. Vincent",6,0,20,0,30,0]
["Community Resource Centre (Killaloe) Inc","Kidz Kastle",0,0,0,0,15,15]
["KIND Forest School","KIND Forest School",0,0,0,13,13,0]
["The Lindsay Weld Centre for Children","Kids Crew - St. Alexander",0,0,0,20,24,0]
["The Lindsay Weld Centre for Children","Lindsay Weld Centre for Children - Main",6,15,24,0,0,0]
["The Lindsay Weld Centre for Children","Kids' Club- St. Lukes",0,0,0,0,60,0]
["The Lindsay Weld Centre for Children","Kids Campus - Holy Cross",0,0,0,0,30,0]
["The Lindsay Weld Centre for Children","Kids Corner - Mother St. Bride"]
["The Lindsay Weld Centre for Children","Kids Connection- St. Huberts",0,0,0,0,30,0]
["NORTH BAY MILITARY FAMILY RESOURCE CENTRE","Little Wings Child Care Center",3,15,24,0,45,0]
["Mattawa Child Care Centre","Mattawa Child Care Centre",6,15,16,0,24,0]
["Montessori Children's House (2685594 Ltd)","Montessori Children's House",0,10,24,13,0,0]
["Montessori Learning Centre","Montessori Learning Centre",0,10,33,0,0,0]
["1168108 Ontario Inc. O/A North Bay Daycare Centre","NBDC - Main",0,10,19,10,0,0]
["1168108 Ontario Inc. O/A North Bay Daycare Centre","NBDC - School Age Program",0,0,0,0,60,0]
["North Bay Indigenous Hub","North Bay Indigenous Hub",10,15,32,0,30,0]
["Garderie de Temagami Day Care","Garderie de Temagami Day Care",0,0,0,0,15,15]
["West Ferris Day Nursery Inc.","West Ferris Day Nursery - Main",6,10,16,0,0,0]
["West Ferris Day Nursery Inc.","West Ferris SA Learning Ctr. Sunset Park",0,0,0,26,60,0]
["West Ferris Day Nursery Inc.","Ferris Glen Learning Centre-Ferris Glen",0,0,16,13,30,0]
["West Ferris Day Nursery Inc.","Silver Birches Child Care-Silver Birches",6,10,38,26,90,0]
["West Nipissing Child Care Corporation","Service de garde Ecole Christ- Roi"]
["West Nipissing Child Care Corporation","La Ruche des Petites Abeilles-Margueritt D'Youville",0,0,19,0,30,0]
["West Nipissing Child Care Corporation","White Woods After School Program",0,0,0,0,30,0]
["West Nipissing Child Care Corporation","La Niche des Lionceaux- Résurrection",6,15,38,20,30,0]
["West Nipissing Child Care Corporation","Service de Garde des Louveteaux-St. Joseph",0,15,24,26,30,0]
["West Nipissing Child Care Corporation","La Tanière des Tout-Petits-Jeunesse Active",10,30,48,26,30,0]
["West Nipissing Child Care Corporation","Centre Base",16,15,48,0,30,0]
["West Nipissing Child Care Corporation","Home Child Care"]
["YMCA of North Bay & District","Mother St. Bride Early Learning Child Care Centre",10,15,24,0,30,0]
["YMCA of North Bay & District","Our Lady of Sorrows Early Learning CCC",0,0,0,0,30,15]
["YMCA of North Bay & District","E.T. Carmicheal School Age Program",0,0,0,48,24,0]
["YMCA of North Bay & District","Vincent Massey School Age Program",0,0,0,26,28,0]
["YMCA of North Bay & District","Alliance School Age Program",0,0,0,26,81,0]
["YMCA of North Bay & District","Woodland Early Learning Child Care Centre",10,15,32,104,60,0]
["YMCA of North Bay & District","Chippewa Early Learning Child Care Centre",10,25,64,24,60,0]
["YMCA of North Bay & District","EW Norman Early Learning Child Care Centre",0,0,20,0,30,0]
["YMCA of North Bay & District","Our Lady of Fatima-Early Learning CCC",0,15,24,0,56,0]
["YMCA of North Bay & District","St. Francis Early Learning Child Care Centre",10,15,48,26,50,0]
["YMCA of North Bay & District","Home Child Care"]